fUST/lending_fUST_20240917
["ID","MTS","AMOUNT","RATE_DAILY","PERIOD"]
[338374342,1726575042299,-1670.303518,0.0001795,2]
[338374343,1726575042309,-1670.303518,0.0001795,2]
[338374344,1726575042318,-65348.3506786,0.00017951,2]
[338374345,1726575042327,-76368.9933915,0.00017951,2]
[338374346,1726575042337,-192.849262,0.00017959,2]
[338374347,1726575042346,-151.0,0.00017959,2]
[338374348,1726575042356,-312.119129,0.00017959,2]
[338374349,1726575042366,-312.119129,0.00017959,2]
[338374350,1726575042375,-151.0,0.00017959,2]
[338374351,1726575042384,-210.519838,0.0001796,2]
[338374352,1726575042394,-151.0,0.0001796,2]
[338374353,1726575042403,-210.519838,0.0001796,2]
[338374354,1726575042412,-151.0,0.0001796,2]
[338374355,1726575042422,-314.42234,0.0001796,2]
[338374356,1726575042431,-314.42234,0.0001796,2]
[338374357,1726575042440,-312.368011,0.0001796,2]
[338374358,1726575042449,-312.368011,0.0001796,2]
[338374359,1726575042458,-277.266269,0.0001796,2]
[338374360,1726575042467,-277.266269,0.0001796,2]
[338374361,1726575042476,-554.055012,0.0001796,2]
[338374362,1726575042486,-151.0,0.0001796,2]
[338374363,1726575042498,-554.055012,0.0001796,2]
[338374364,1726575042507,-151.0,0.0001796,2]
[338374365,1726575042517,-151.0,0.0001796,2]
[338374366,1726575042526,-151.0,0.0001796,2]
[338374367,1726575042535,-151.0,0.0001796,2]
[338374368,1726575042546,-151.0,0.0001796,2]
[338374369,1726575042554,-151.0,0.0001796,2]
[338374370,1726575042564,-312.119129,0.0001796,2]
[338374371,1726575042573,-312.119129,0.0001796,2]
[338374372,1726575042583,-151.0,0.0001796,2]
[338374373,1726575042593,-151.0,0.0001796,2]
[338374375,1726575042602,-151.0,0.0001796,2]
[338374377,1726575042611,-233.443304,0.0001796,2]
[338374379,1726575042623,-193.669975,0.0001796,2]
[338374381,1726575042633,-1670.303518,0.0001796,2]
[338374383,1726575042642,-1670.303509,0.0001796,2]
[338374385,1726575042651,-65348.3506786,0.0001796,2]
[338374387,1726575042661,-60076.6348157,0.0001796,2]
[338374396,1726575043516,-12056.06183503,0.0001796,2]
[338374467,1726575046046,-500.0,0.00016857,2]
[338374470,1726575046061,-96.8,0.00016857,2]
[338374508,1726575073381,2828.0,0.0001797,120]
[338374509,1726575073864,2828.0,0.0001796,120]
[338374510,1726575074589,2828.0,0.0001795,120]
[338374516,1726575195220,1979.0,0.0001797,120]
[338374517,1726575195701,1979.0,0.0001796,120]
[338374518,1726575196187,1979.0,0.0001795,120]
[338374533,1726575315231,1386.0,0.00017949,120]
[338374534,1726575315718,1386.0,0.00017939,120]
[338374535,1726575316441,1386.0,0.00017929,120]
[338374539,1726575434706,970.0,0.00017949,120]
[338374540,1726575435217,970.0,0.00017939,120]
[338374541,1726575435754,970.0,0.00017929,120]
[338374542,1726575452526,162.521944,0.00013699,2]
[338374544,1726575555968,679.0,0.00017705,120]
[338374545,1726575556863,679.0,0.00017695,120]
[338374546,1726575556978,679.0,0.00017685,120]
[338374547,1726575557477,679.0,0.0002049,120]
[338374548,1726575557962,679.0,0.0002048,120]
[338374549,1726575558456,679.0,0.0002047,120]
[338374550,1726575674592,272.0,0.00016622,120]
[338374551,1726575675125,272.0,0.00016612,120]
[338374552,1726575675574,272.0,0.00016602,120]
[338374553,1726575676068,272.0,0.0002046,120]
[338374554,1726575676517,272.0,0.0002045,120]
[338374555,1726575677167,272.0,0.0002044,120]
[338374556,1726575795397,150.5,0.00016622,120]
[338374557,1726575795876,150.5,0.00016612,120]
[338374558,1726575796383,150.5,0.00016602,120]
[338374559,1726575796849,150.5,0.0002049,120]
[338374560,1726575797475,150.5,0.0002048,120]
[338374561,1726575797800,150.5,0.0002047,120]
[338374563,1726575857748,762.434168,0.00013824,2]
[338374564,1726575857805,7678.5387551,0.00013824,2]
[338374565,1726575860377,217.2342131,0.00013029,2]
[338374566,1726575864715,445.7307868,0.00013715,2]
[338374567,1726575867600,5000.0,0.00013701,2]
[338374568,1726575915291,185.33,0.00016602,120]
[338374573,1726575978348,24900.0,0.0001372,2]
[338374574,1726575980223,162.521944,0.00013699,2]
[338374575,1726575999069,500.0,0.0001401,2]
[338374576,1726576007610,500.0,0.0001401,2]
[338374577,1726576012467,500.0,0.0001401,2]
[338374578,1726576014293,500.0,0.0001401,2]
[338374579,1726576015856,500.0,0.0001401,2]
[338374580,1726576017158,500.0,0.0001401,2]
[338374581,1726576018638,500.0,0.0001401,2]
[338374582,1726576020277,500.0,0.0001401,2]
[338374583,1726576021756,500.0,0.0001401,2]
[338374584,1726576023204,500.0,0.0001401,2]
[338374585,1726576024728,500.0,0.0001401,2]
[338374586,1726576025983,500.0,0.0001401,2]
[338374587,1726576027495,500.0,0.0001401,2]
[338374588,1726576029239,500.0,0.0001401,2]
[338374589,1726576064220,287.5622596,0.00013701,2]
[338374590,1726576067259,442.1045274,0.00013686,2]
[338374594,1726576132112,1002.0,0.0002051,120]
[338374595,1726576134351,164.52440046,0.00014005,2]
[338374596,1726576135798,500.0,0.0001401,2]
[338374597,1726576137414,500.0,0.0001401,2]
[338374598,1726576137600,500.0,0.0001401,2]
[338374599,1726576138408,500.0,0.0001401,2]
[338374600,1726576138981,500.0,0.0001401,2]
[338374601,1726576139605,500.0,0.0001401,2]
[338374602,1726576140889,500.0,0.0001401,2]
[338374603,1726576141389,500.0,0.0001401,2]
[338374604,1726576141781,500.0,0.0001401,2]
[338374605,1726576142221,500.0,0.0001401,2]
[338374606,1726576145160,-411.64497,0.00014101,2]
[338374607,1726576145181,-411.64497,0.00014105,2]
[338374608,1726576145203,-287.37669061,0.00014108,2]
[338374609,1726576146170,-124.26827939,0.00014108,2]
[338374610,1726576146193,-411.64497,0.00014112,2]
[338374611,1726576146215,-411.64497,0.00014116,2]
[338374612,1726576146237,-411.64497,0.0001412,2]
[338374613,1726576146258,-411.64497,0.00014123,2]
[338374614,1726576146279,-1779.567213,0.00014127,2]
[338374615,1726576146299,-411.64497,0.00014127,2]
[338374616,1726576146320,-411.64497,0.00014131,2]
[338374617,1726576146342,-411.64497,0.00014134,2]
[338374618,1726576146362,-1808.8471285,0.00014135,2]
[338374619,1726576146383,-411.64497,0.00014138,2]
[338374620,1726576146404,-411.64497,0.00014142,2]
[338374621,1726576146425,-395.61469506,0.00014145,2]
[338374624,1726576153099,500.0,0.0001401,2]
[338374625,1726576153130,-16.03027494,0.00014145,2]
[338374626,1726576153151,-300.0,0.00014148,2]
[338374627,1726576153172,-411.64497,0.00014149,2]
[338374628,1726576153193,-411.64497,0.00014153,2]
[338374629,1726576153214,-92.13729196,0.00014157,2]
[338374630,1726576153942,500.0,0.0001401,2]
[338374631,1726576154593,500.0,0.0001401,2]
[338374632,1726576155085,500.0,0.0001401,2]
[338374633,1726576155767,500.0,0.0001401,2]
[338374634,1726576156185,500.0,0.0001401,2]
[338374635,1726576156765,500.0,0.0001401,2]
[338374636,1726576157570,500.0,0.0001401,2]
[338374637,1726576169115,-319.50767804,0.00014157,2]
[338374638,1726576169139,-411.64497,0.0001416,2]
[338374639,1726576169163,-411.64497,0.00014164,2]
[338374640,1726576169185,-411.64497,0.00014168,2]
[338374641,1726576169206,-411.64497,0.00014171,2]
[338374642,1726576169231,-250.0,0.00014664,2]
[338374643,1726576169256,-250.0,0.00014704,2]
[338374644,1726576169277,-96.93334572,0.00014745,2]
[338374665,1726576233694,-310.746,0.00014245,2]
[338374706,1726576238213,-1497.08717589,0.00014245,2]
[338374708,1726576238223,-250.0,0.00014345,2]
[338374710,1726576238232,-500.0,0.0001435,2]
[338374712,1726576238243,-250.0,0.00014384,2]
[338374714,1726576238253,-250.0,0.00014424,2]
[338374716,1726576238263,-250.0,0.00014463,2]
[338374718,1726576238272,-250.0,0.00014502,2]
[338374719,1726576238282,-250.0,0.00014542,2]
[338374720,1726576238291,-250.0,0.00014581,2]
[338374721,1726576238300,-250.0,0.0001462,2]
[338374722,1726576238309,-250.0,0.0001466,2]
[338374723,1726576238318,-250.0,0.00014699,2]
[338374724,1726576238329,-250.0,0.00014738,2]
[338374725,1726576238338,-3000.0,0.00014763,2]
[338374726,1726576238353,-250.0,0.00014778,2]
[338374727,1726576238362,-250.0,0.00014817,2]
[338374728,1726576238371,-250.0,0.00014856,2]
[338374729,1726576238380,-250.0,0.00014896,2]
[338374730,1726576238389,-250.0,0.00014935,2]
[338374731,1726576238398,-250.0,0.00014974,2]
[338374732,1726576238407,-250.0,0.00015014,2]
[338374733,1726576238417,-250.0,0.00015053,2]
[338374734,1726576238426,-250.0,0.00015093,2]
[338374735,1726576238435,-409.53139977,0.00015524,2]
[338374736,1726576238444,-300.0,0.00015524,2]
[338374737,1726576238453,-300.0,0.00015524,2]
[338374738,1726576238462,-500.0,0.00015623,2]
[338374739,1726576238471,-500.0,0.00015623,2]
[338374740,1726576238480,-500.0,0.00015623,2]
[338374741,1726576238489,-500.0,0.00015623,2]
[338374742,1726576238499,-500.0,0.00015623,2]
[338374743,1726576238508,-300.0,0.00015623,2]
[338374744,1726576238517,-1000.0,0.00016,6]
[338374745,1726576238527,-2206.85328322,0.00016,3]
[338374746,1726576238536,-409.53139976,0.00016013,2]
[338374747,1726576238545,-409.53139976,0.00016501,2]
[338374748,1726576238554,-851.94526428,0.00016511,2]
[338374749,1726576238563,-851.94526425,0.00016516,2]
[338374750,1726576238573,-851.94526425,0.00016522,2]
[338374751,1726576238587,-851.94526425,0.00016527,2]
[338374752,1726576238596,-851.94526425,0.00016532,2]
[338374753,1726576238605,-500.0,0.00016601,2]
[338374754,1726576238615,-500.0,0.00016601,2]
[338374755,1726576238624,-477.55928834,0.00016601,2]
[338374756,1726576238633,-562.48952153,0.00016601,2]
[338374757,1726576238641,-500.0,0.00016601,2]
[338374758,1726576238651,-500.0,0.00016601,2]
[338374759,1726576238660,-562.48952153,0.00016601,2]
[338374760,1726576238669,-400.0,0.00016601,2]
[338374761,1726576238679,-179.34388261,0.00016601,2]
[338374762,1726576238688,-562.48952153,0.00016601,2]
[338374763,1726576238698,-562.48952153,0.00016601,2]
[338374764,1726576238707,-412.94141155,0.00016601,2]
[338374765,1726576238716,-562.48952153,0.00016601,2]
[338374766,1726576238726,-562.48952153,0.00016601,2]
[338374767,1726576238736,-562.48952153,0.00016601,2]
[338374768,1726576238745,-500.0,0.00016601,2]
[338374769,1726576238755,-562.48952153,0.00016601,2]
[338374770,1726576238764,-562.48952153,0.00016601,2]
[338374771,1726576238773,-500.0,0.00016601,2]
[338374772,1726576238783,-562.48952153,0.00016601,2]
[338374773,1726576238792,-562.48952153,0.00016601,2]
[338374774,1726576238801,-500.0,0.00016601,2]
[338374775,1726576238810,-163.39754195,0.00016601,2]
[338374776,1726576238819,-500.0,0.00016601,2]
[338374777,1726576238831,-562.48952153,0.00016601,2]
[338374778,1726576238839,-500.0,0.00016601,2]
[338374779,1726576238848,-562.48952153,0.00016601,2]
[338374780,1726576238857,-562.48952153,0.00016601,2]
[338374781,1726576238867,-562.48952153,0.00016601,2]
[338374782,1726576238876,-562.48952153,0.00016601,2]
[338374783,1726576238885,-562.48952153,0.00016601,2]
[338374784,1726576238894,-562.48952153,0.00016601,2]
[338374785,1726576238903,-500.0,0.00016601,2]
[338374786,1726576238912,-500.0,0.00016601,2]
[338374787,1726576238921,-474.66023935,0.00016601,2]
[338374788,1726576238930,-567.60306264,0.00016601,2]
[338374789,1726576238939,-567.60306264,0.00016601,2]
[338374790,1726576238948,-567.60306264,0.00016601,2]
[338374791,1726576238957,-567.60306264,0.00016601,2]
[338374792,1726576238965,-567.60306264,0.00016601,2]
[338374794,1726576238974,-567.60306264,0.00016601,2]
[338374795,1726576238983,-567.60306264,0.00016601,2]
[338374797,1726576238992,-567.60306264,0.00016601,2]
[338374798,1726576239001,-567.60306264,0.00016601,2]
[338374800,1726576239010,-567.60306264,0.00016601,2]
[338374802,1726576239023,-567.60306264,0.00016601,2]
[338374804,1726576239032,-151.0,0.00016601,2]
[338374806,1726576239041,-151.0,0.00016601,2]
[338374808,1726576239050,-210.519838,0.00016601,2]
[338374809,1726576239060,-210.519838,0.00016601,2]
[338374810,1726576239069,-915.27628195,0.00016601,5]
[338374811,1726576239079,-70779.94011699,0.00016601,5]
[338374812,1726576239088,-176.64202105,0.00016601,2]
[338374813,1726576239097,-426902.823208,0.00016602,2]
[338374814,1726576239106,-480611.836425,0.00016602,2]
[338374815,1726576239115,-151.0,0.0001661,2]
[338374816,1726576239124,-210.519838,0.0001661,2]
[338374817,1726576239134,-210.519838,0.0001661,2]
[338374818,1726576239144,-160.0,0.00016611,2]
[338374819,1726576239155,-151.0,0.00016612,2]
[338374820,1726576239167,-151.0,0.00016612,2]
[338374821,1726576239176,-151.0,0.00016612,2]
[338374822,1726576239185,-151.0,0.00016612,2]
[338374823,1726576239195,-279.403508,0.00016612,2]
[338374824,1726576239204,-279.403508,0.00016612,2]
[338374825,1726576239215,-151.0,0.00016612,2]
[338374826,1726576239225,-151.0,0.00016612,2]
[338374827,1726576239236,-1839.236717,0.00016612,2]
[338374828,1726576239245,-1839.236717,0.00016612,2]
[338374829,1726576239257,-291.050099,0.00016612,2]
[338374830,1726576239266,-486.132448,0.00016612,2]
[338374831,1726576239277,-486.132448,0.00016612,2]
[338374832,1726576239287,-3646.432546,0.00016612,2]
[338374833,1726576239298,-3646.432546,0.00016612,2]
[338374834,1726576239309,-151.0,0.00016612,2]
[338374836,1726576239318,-151.0,0.00016612,2]
[338374837,1726576239328,-554.055012,0.00016612,2]
[338374839,1726576239337,-554.055012,0.00016612,2]
[338374841,1726576239346,-151.0,0.00016612,2]
[338374843,1726576239356,-351.412627,0.00016612,2]
[338374845,1726576239365,-351.412627,0.00016612,2]
[338374847,1726576239374,-314.42234,0.00016612,2]
[338374849,1726576239384,-314.42234,0.00016612,2]
[338374851,1726576239393,-151.0,0.00016612,2]
[338374853,1726576239402,-151.0,0.00016612,2]
[338374855,1726576239411,-151.0,0.00016612,2]
[338374856,1726576239420,-151.0,0.00016612,2]
[338374858,1726576239429,-320.584509,0.00016612,2]
[338374873,1726576239584,-320.584509,0.00016612,2]
[338374875,1726576239596,-151.0,0.00016622,2]
[338374877,1726576239606,-151.0,0.00016622,2]
[338374879,1726576239616,-278.215998,0.00016622,2]
[338374881,1726576239625,-183.608248,0.00016622,2]
[338374883,1726576239635,-183.608248,0.00016622,2]
[338374885,1726576239646,-52589.87741429,0.00016632,2]
[338374887,1726576239658,-151.0,0.00016632,2]
[338374889,1726576239667,-151.0,0.00016632,2]
[338374891,1726576239676,-151.0,0.00016632,2]
[338374893,1726576239685,-151.0,0.00016632,2]
[338374895,1726576239695,-258.713938,0.00016632,2]
[338374896,1726576239705,-801.747779,0.00016632,2]
[338374898,1726576239714,-151.0,0.00016632,2]
[338374900,1726576239724,-151.0,0.00016632,2]
[338374902,1726576239733,-4000.0,0.00016632,2]
[338374904,1726576239742,-4000.0,0.00016632,2]
[338374906,1726576239752,-4000.0,0.00016632,2]
[338374908,1726576239761,-4000.0,0.00016632,2]
[338374910,1726576239770,-4000.0,0.00016632,2]
[338374911,1726576239780,-151.0,0.00016632,2]
[338374913,1726576239789,-4000.0,0.00016632,2]
[338374915,1726576239798,-4000.0,0.00016632,2]
[338374917,1726576239807,-859.278963,0.00016632,2]
[338374919,1726576239816,-278.215998,0.00016632,2]
[338374920,1726576239825,-172.335319,0.00016632,2]
[338374921,1726576239836,-172.335319,0.00016632,2]
[338374922,1726576239846,-151.755896,0.00016632,2]
[338374924,1726576239855,-361.651655,0.00016632,2]
[338374925,1726576239864,-151.755896,0.00016632,2]
[338374926,1726576239873,-361.651655,0.00016632,2]
[338374927,1726576239882,-151.0,0.00016632,2]
[338374928,1726576239891,-183.608248,0.00016632,2]
[338374929,1726576239901,-151.0,0.00016632,2]
[338374930,1726576239910,-183.608248,0.00016632,2]
[338374931,1726576239920,-373.317866,0.00016632,2]
[338374932,1726576239932,-373.317866,0.00016632,2]
[338374933,1726576239941,-151.0,0.00016632,2]
[338374934,1726576239952,-151.0,0.00016632,2]
[338374935,1726576239962,-151.0,0.00016632,2]
[338374936,1726576239971,-151.0,0.00016632,2]
[338374937,1726576239980,-279.403508,0.00016632,2]
[338374938,1726576239989,-151.0,0.00016632,2]
[338374939,1726576239998,-279.403508,0.00016632,2]
[338374940,1726576240007,-151.0,0.00016632,2]
[338374941,1726576240019,-279.403508,0.00016632,2]
[338374942,1726576240030,-279.403508,0.00016632,2]
[338374943,1726576240040,-151.0,0.00016632,2]
[338374944,1726576240051,-151.0,0.00016632,2]
[338374945,1726576240062,-151.0,0.00016632,2]
[338374946,1726576240070,-1839.236717,0.00016632,2]
[338374947,1726576240080,-1839.236717,0.00016632,2]
[338374948,1726576240090,-1839.236717,0.00016632,2]
[338374949,1726576240099,-1839.236717,0.00016632,2]
[338374950,1726576240108,-486.132448,0.00016632,2]
[338374951,1726576240117,-486.132448,0.00016632,2]
[338374952,1726576240126,-486.132448,0.00016632,2]
[338374953,1726576240135,-486.132448,0.00016632,2]
[338374954,1726576240144,-3646.432546,0.00016632,2]
[338374955,1726576240153,-3646.432546,0.00016632,2]
[338374956,1726576240166,-3646.432546,0.00016632,2]
[338374957,1726576240175,-3646.432546,0.00016632,2]
[338374958,1726576240184,-151.0,0.00016632,2]
[338374960,1726576240192,-151.0,0.00016632,2]
[338374961,1726576240203,-151.0,0.00016632,2]
[338374963,1726576240212,-151.0,0.00016632,2]
[338374965,1726576240221,-554.055012,0.00016632,2]
[338374966,1726576240230,-554.055012,0.00016632,2]
[338374967,1726576240241,-554.055012,0.00016632,2]
[338374968,1726576240250,-554.055012,0.00016632,2]
[338374969,1726576240259,-151.0,0.00016632,2]
[338374970,1726576240269,-151.0,0.00016632,2]
[338374971,1726576240278,-351.412627,0.00016632,2]
[338374972,1726576240287,-351.412627,0.00016632,2]
[338374973,1726576240297,-351.412627,0.00016632,2]
[338374974,1726576240306,-351.412627,0.00016632,2]
[338374975,1726576240316,-314.42234,0.00016632,2]
[338374976,1726576240326,-314.42234,0.00016632,2]
[338374977,1726576240337,-314.42234,0.00016632,2]
[338374979,1726576240348,-314.42234,0.00016632,2]
[338374981,1726576240358,-151.0,0.00016632,2]
[338374982,1726576240367,-151.0,0.00016632,2]
[338374984,1726576240376,-151.0,0.00016632,2]
[338374987,1726576240385,-151.0,0.00016632,2]
[338374989,1726576240394,-151.0,0.00016632,2]
[338374991,1726576240403,-151.0,0.00016632,2]
[338374993,1726576240413,-151.0,0.00016632,2]
[338374994,1726576240422,-151.0,0.00016632,2]
[338374995,1726576240431,-320.584509,0.00016632,2]
[338374996,1726576240440,-320.584509,0.00016632,2]
[338374998,1726576240449,-320.584509,0.00016632,2]
[338375000,1726576240458,-151.0,0.00016632,2]
[338375002,1726576240467,-151.0,0.00016632,2]
[338375004,1726576240476,-210.519838,0.00016632,2]
[338375005,1726576240485,-210.519838,0.00016632,2]
[338375007,1726576240494,-210.519838,0.00016632,2]
[338375009,1726576240503,-210.519838,0.00016632,2]
[338375011,1726576240514,-2734.18977255,0.00016656,2]
[338375013,1726576240524,-192.849262,0.00016656,2]
[338375015,1726576240535,-210.519838,0.00016656,2]
[338375018,1726576240546,-210.519838,0.00016656,2]
[338375020,1726576240556,-500.50684827,0.00016673,2]
[338375022,1726576240567,-500.0,0.00016673,2]
[338375024,1726576240577,-500.0,0.00016673,2]
[338375026,1726576240587,-500.0,0.00016673,2]
[338375028,1726576240596,-500.0,0.00016673,2]
[338375030,1726576240605,-500.0,0.00016673,2]
[338375032,1726576240615,-500.0,0.00016673,2]
[338375034,1726576240624,-500.0,0.00016673,2]
[338375036,1726576240634,-500.0,0.00016673,2]
[338375037,1726576240643,-501.85661138,0.00016673,2]
[338375039,1726576240652,-925.4997523,0.000167,2]
[338375041,1726576240662,-163.208782,0.00016714,2]
[338375043,1726576240671,-163.208782,0.00016725,2]
[338375045,1726576240681,-163.208782,0.00016735,2]
[338375046,1726576240690,-163.208782,0.00016746,2]
[338375048,1726576240700,-204.96739867,0.00016756,2]
[338375050,1726576240711,-580.46673821,0.00016756,2]
[338375052,1726576240720,-151.0,0.00016756,2]
[338375053,1726576240730,-151.0,0.00016756,2]
[338375055,1726576240740,-151.0,0.00016756,2]
[338375057,1726576240751,-163.208782,0.00016756,2]
[338375059,1726576240762,-163.208782,0.00016766,2]
[338375060,1726576240772,-163.208782,0.00016777,2]
[338375062,1726576240781,-163.208782,0.00016787,2]
[338375063,1726576240792,-163.208782,0.00016798,2]
[338375065,1726576240801,-420.0,0.00016981,2]
[338375067,1726576240812,-1000.0,0.00017,17]
[338375069,1726576240822,-420.0,0.00017076,2]
[338375071,1726576240832,-153.0,0.0001723,2]
[338375073,1726576240842,-153.0,0.0001723,2]
[338375074,1726576240853,-153.0,0.000176,2]
[338375075,1726576240863,-153.0,0.000176,2]
[338375077,1726576240873,-6583.60656235,0.00017602,2]
[338375079,1726576240882,-1000.0,0.000177,2]
[338375080,1726576240891,-150.112234,0.000177,2]
[338375081,1726576240900,-226.208863,0.000177,2]
[338375082,1726576240909,-2734.18977252,0.00017772,2]
[338375083,1726576240920,-500.0,0.00017773,2]
[338375084,1726576240930,-500.0,0.00017773,2]
[338375085,1726576240941,-500.0,0.00017773,2]
[338375086,1726576240950,-361.651655,0.0001778,2]
[338375087,1726576240961,-361.651655,0.0001778,2]
[338375088,1726576240970,-151.0,0.0001778,2]
[338375089,1726576240979,-151.0,0.0001778,2]
[338375090,1726576240989,-373.317866,0.0001778,2]
[338375091,1726576240998,-373.317866,0.0001778,2]
[338375092,1726576241008,-151.0,0.0001778,2]
[338375093,1726576241018,-151.0,0.0001778,2]
[338375094,1726576241028,-279.403508,0.0001778,2]
[338375095,1726576241039,-206.147264,0.0001778,2]
[338375096,1726576241050,-279.403508,0.0001778,2]
[338375097,1726576241059,-156.602291,0.0001778,2]
[338375098,1726576241069,-1839.236717,0.0001778,2]
[338375099,1726576241079,-1839.236717,0.0001778,2]
[338375100,1726576241090,-486.132448,0.0001778,2]
[338375101,1726576241101,-486.132448,0.0001778,2]
[338375102,1726576241111,-3646.432546,0.0001778,2]
[338375103,1726576241123,-3646.432546,0.0001778,2]
[338375104,1726576241134,-151.0,0.0001778,2]
[338375105,1726576241147,-151.0,0.0001778,2]
[338375106,1726576241162,-554.055012,0.0001778,2]
[338375107,1726576241173,-554.055012,0.0001778,2]
[338375108,1726576241182,-178.234546,0.0001778,2]
[338375109,1726576241192,-351.412627,0.0001778,2]
[338375110,1726576241202,-351.412627,0.0001778,2]
[338375111,1726576241212,-314.42234,0.0001778,2]
[338375112,1726576241222,-314.42234,0.0001778,2]
[338375113,1726576241232,-151.0,0.0001778,2]
[338375114,1726576241243,-151.0,0.0001778,2]
[338375115,1726576241254,-277.427424,0.0001778,2]
[338375116,1726576241263,-320.584509,0.0001778,2]
[338375117,1726576241273,-320.584509,0.0001778,2]
[338375118,1726576241283,-210.519838,0.0001778,2]
[338375119,1726576241292,-210.519838,0.0001778,2]
[338375120,1726576241301,-151.0,0.0001779,2]
[338375121,1726576241311,-151.0,0.0001779,2]
[338375122,1726576241321,-151.0,0.0001779,2]
[338375123,1726576241333,-151.0,0.0001779,2]
[338375124,1726576241342,-151.0,0.0001779,2]
[338375125,1726576241351,-151.0,0.0001779,2]
[338375126,1726576241361,-151.0,0.0001779,2]
[338375127,1726576241371,-151.0,0.0001779,2]
[338375128,1726576241380,-151.0,0.0001779,2]
[338375129,1726576241389,-151.0,0.0001779,2]
[338375130,1726576241399,-151.0,0.0001779,2]
[338375131,1726576241408,-151.0,0.0001779,2]
[338375132,1726576241418,-292.444041,0.0001779,2]
[338375133,1726576241430,-801.747779,0.0001779,2]
[338375134,1726576241439,-801.747779,0.0001779,2]
[338375135,1726576241450,-151.0,0.0001779,2]
[338375136,1726576241459,-151.0,0.0001779,2]
[338375137,1726576241468,-151.0,0.0001779,2]
[338375138,1726576241477,-151.0,0.0001779,2]
[338375139,1726576241487,-151.0,0.0001779,2]
[338375140,1726576241496,-278.215998,0.0001779,2]
[338375141,1726576241505,-278.215998,0.0001779,2]
[338375142,1726576241515,-278.215998,0.0001779,2]
[338375143,1726576241525,-151.0,0.0001779,2]
[338375144,1726576241535,-151.0,0.0001779,2]
[338375145,1726576241545,-278.215998,0.0001779,2]
[338375146,1726576241555,-278.215998,0.0001779,2]
[338375147,1726576241565,-278.215998,0.0001779,2]
[338375148,1726576241575,-172.335319,0.0001779,2]
[338375149,1726576241589,-172.335319,0.0001779,2]
[338375150,1726576241599,-172.335319,0.0001779,2]
[338375151,1726576241609,-172.335319,0.0001779,2]
[338375152,1726576241620,-151.755896,0.0001779,2]
[338375153,1726576241631,-151.755896,0.0001779,2]
[338375154,1726576241642,-361.651655,0.0001779,2]
[338375155,1726576241654,-361.651655,0.0001779,2]
[338375156,1726576241665,-151.755896,0.0001779,2]
[338375157,1726576241675,-151.755896,0.0001779,2]
[338375158,1726576241685,-361.651655,0.0001779,2]
[338375159,1726576241696,-361.651655,0.0001779,2]
[338375160,1726576241705,-151.0,0.0001779,2]
[338375161,1726576241716,-151.0,0.0001779,2]
[338375162,1726576241727,-183.608248,0.0001779,2]
[338375163,1726576241856,-183.608248,0.0001779,2]
[338375164,1726576241879,-183.608248,0.0001779,2]
[338375165,1726576241888,-151.0,0.0001779,2]
[338375166,1726576241898,-151.0,0.0001779,2]
[338375167,1726576241907,-183.608248,0.0001779,2]
[338375168,1726576241916,-183.608248,0.0001779,2]